fUST/lending_fUST_20250421
["ID","MTS","AMOUNT","RATE_DAILY","PERIOD"]
[358550416,1745245840067,-3412.16,0.00023835,2]
[358550417,1745245840077,-682.53,0.00023835,2]
[358550418,1745245840087,-500.0,0.00023835,2]
[358550420,1745245840098,-1899.27,0.00023835,2]
[358550421,1745245840108,-500.0,0.00023835,2]
[358550422,1745245840118,-500.0,0.00023835,2]
[358550424,1745245840129,-500.0,0.00023835,2]
[358550426,1745245840139,-978.04,0.00023835,2]
[358550428,1745245840149,-420.0,0.00023929,2]
[358550429,1745245840160,-600.0,0.00024049,2]
[358550431,1745245840171,-926.17468584,0.00024108,5]
[358550432,1745245840181,-500.0,0.00024109,2]
[358550433,1745245840191,-500.0,0.00024109,2]
[358550434,1745245840202,-500.0,0.00024109,2]
[358550435,1745245840212,-500.0,0.00024109,2]
[358550436,1745245840224,-3412.16,0.00024109,2]
[358550437,1745245840234,-682.53,0.00024109,2]
[358550438,1745245840245,-500.0,0.00024109,2]
[358550439,1745245840256,-1899.27,0.00024109,2]
[358550440,1745245840271,-500.0,0.00024109,2]
[358550441,1745245840281,-500.0,0.00024109,2]
[358550442,1745245840293,-500.0,0.00024109,2]
[358550443,1745245840304,-978.04,0.00024109,2]
[358550444,1745245840315,-160.0,0.00024306,2]
[358550445,1745245840326,-160.0,0.00024306,2]
[358550446,1745245840337,-160.0,0.00024306,2]
[358550447,1745245840348,-420.65680271,0.00024306,2]
[358550448,1745245840359,-160.0,0.00024306,2]
[358550449,1745245840370,-1688.54,0.00024382,2]
[358550450,1745245840381,-500.0,0.00024383,2]
[358550451,1745245840392,-500.0,0.00024383,2]
[358550452,1745245840403,-500.0,0.00024383,2]
[358550453,1745245840414,-500.0,0.00024383,2]
[358550454,1745245840425,-3412.16,0.00024383,2]
[358550455,1745245840436,-682.53,0.00024383,2]
[358550456,1745245840446,-500.0,0.00024383,2]
[358550457,1745245840457,-1899.27,0.00024383,2]
[358550458,1745245840467,-500.0,0.00024383,2]
[358550459,1745245840478,-500.0,0.00024383,2]
[358550460,1745245840488,-500.0,0.00024383,2]
[358550461,1745245840498,-978.04,0.00024383,2]
[358550462,1745245840511,-2822.93903707,0.000246,2]
[358550463,1745245840521,-571.44847906,0.00024604,2]
[358550464,1745245840532,-45115.3987709,0.00024651,2]
[358550465,1745245840543,-1688.54,0.00024656,2]
[358550466,1745245840554,-500.0,0.00024657,2]
[358550467,1745245840564,-500.0,0.00024657,2]
[358550468,1745245840575,-500.0,0.00024657,2]
[358550469,1745245840585,-500.0,0.00024657,2]
[358550470,1745245840596,-3412.16,0.00024657,2]
[358550471,1745245840738,-682.53,0.00024657,2]
[358550472,1745245840748,-500.0,0.00024657,2]
[358550473,1745245840757,-1899.27,0.00024657,2]
[358550474,1745245840768,-500.0,0.00024657,2]
[358550475,1745245840779,-500.0,0.00024657,2]
[358550476,1745245840788,-500.0,0.00024657,2]
[358550477,1745245840797,-978.04,0.00024657,2]
[358550478,1745245840807,-200.0,0.00024658,15]
[358550479,1745245840816,-500.0,0.00024658,2]
[358550480,1745245840826,-500.0,0.00024658,2]
[358550481,1745245840835,-252.00619971,0.00024658,2]
[358550482,1745245840844,-252.11607415,0.00024658,2]
[358550483,1745245840854,-1297.56754869,0.00024788,2]
[358550484,1745245840864,-12278.4520569,0.000248,2]
[358550485,1745245840873,-6139.22602847,0.00024843,2]
[358550486,1745245840882,-12472.83878926,0.00024853,2]
[358550487,1745245840891,-6139.22602847,0.00024854,2]
[358550488,1745245840901,-12472.83878926,0.0002486,2]
[358550489,1745245840911,-16630.45171901,0.00024861,2]
[358550490,1745245840921,-16630.45171901,0.00024863,2]
[358550491,1745245840931,-4157.61292975,0.00024864,2]
[358550492,1745245840940,-4157.61292975,0.00024867,2]
[358550493,1745245840950,-500.0,0.00024873,2]
[358550494,1745245840960,-500.0,0.00024873,2]
[358550495,1745245840970,-500.0,0.00024873,2]
[358550496,1745245840980,-500.0,0.00024873,2]
[358550497,1745245840990,-500.0,0.00024873,2]
[358550498,1745245841000,-500.0,0.00024873,2]
[358550499,1745245841012,-6139.22602847,0.00024878,2]
[358550500,1745245841021,-4157.61292975,0.00024881,2]
[358550501,1745245841031,-16630.45171901,0.00024887,2]
[358550502,1745245841041,-16630.45171901,0.00024888,2]
[358550503,1745245841050,-4157.61292975,0.00024891,2]
[358550504,1745245841060,-12472.83878926,0.00024891,2]
[358550505,1745245841069,-12472.83878926,0.00024896,2]
[358550506,1745245841078,-1688.54,0.00024899,2]
[358550507,1745245841087,-1688.54,0.00024899,2]
[358550508,1745245841097,-1688.54,0.00024899,2]
[358550509,1745245841106,-1688.54,0.00024899,2]
[358550510,1745245841116,-1688.54,0.00024899,2]
[358550511,1745245841126,-1688.54,0.00024899,2]
[358550512,1745245841135,-1688.54,0.00024899,2]
[358550513,1745245841144,-1688.54,0.00024899,2]
[358550514,1745245841154,-1688.54,0.00024899,2]
[358550515,1745245841164,-1688.54,0.00024899,2]
[358550516,1745245841173,-1688.54,0.00024899,2]
[358550517,1745245841182,-1688.54,0.00024899,2]
[358550518,1745245841191,-1688.54,0.00024899,2]
[358550519,1745245841201,-1688.54,0.00024899,2]
[358550520,1745245841210,-1688.55824272,0.00024899,2]
[358550521,1745245841220,-656903.536489,0.000249,2]
[358550522,1745245841229,-650.37818157,0.000249,2]
[358550523,1745245841239,-500.0,0.00024931,2]
[358550524,1745245841248,-500.0,0.00024931,2]
[358550525,1745245841257,-500.0,0.00024931,2]
[358550526,1745245841270,-500.0,0.00024931,2]
[358550527,1745245841279,-3412.16,0.00024931,2]
[358550528,1745245841289,-682.53,0.00024931,2]
[358550529,1745245841298,-500.0,0.00024931,2]
[358550530,1745245841308,-1899.27,0.00024931,2]
[358550531,1745245841317,-500.0,0.00024931,2]
[358550532,1745245841327,-500.0,0.00024931,2]
[358550533,1745245841337,-500.0,0.00024931,2]
[358550534,1745245841347,-978.04,0.00024931,2]
[358550535,1745245841357,-500.0,0.00024973,2]
[358550536,1745245841366,-500.0,0.00024973,2]
[358550537,1745245841376,-500.0,0.00024973,2]
[358550538,1745245841386,-500.0,0.00024973,2]
[358550539,1745245841396,-500.0,0.00024973,2]
[358550540,1745245841405,-457.323273,0.00024973,2]
[358550541,1745245841415,-500.0,0.00024973,2]
[358550542,1745245841425,-500.0,0.00024973,2]
[358550543,1745245841434,-33152.00992592,0.00025,7]
[358550544,1745245841443,-331.07003009,0.00025,2]
[358550545,1745245841453,-839.72553703,0.00025,2]
[358550546,1745245841462,-99800.0,0.00025,2]
[358550547,1745245841472,-172.0,0.00025,2]
[358550548,1745245841481,-600.4535579,0.00025,2]
[358550549,1745245841491,-40886.25862043,0.00025,17]
[358550550,1745245841501,-669.14502794,0.00025,30]
[358550551,1745245841513,-6139.22602847,0.00025195,2]
[358550552,1745245841525,-500.0,0.00025205,2]
[358550553,1745245841534,-500.0,0.00025205,2]
[358550554,1745245841544,-500.0,0.00025205,2]
[358550555,1745245841554,-500.0,0.00025205,2]
[358550556,1745245841563,-3412.16,0.00025205,2]
[358550557,1745245841572,-682.53,0.00025205,2]
[358550558,1745245841581,-500.0,0.00025205,2]
[358550559,1745245841591,-1899.27,0.00025205,2]
[358550560,1745245841600,-500.0,0.00025205,2]
[358550561,1745245841609,-457.02,0.00025205,2]
[358550562,1745245841618,-500.0,0.00025205,2]
[358550563,1745245841627,-978.04,0.00025205,2]
[358550564,1745245841637,-900.0,0.00025469,3]
[358550565,1745245841646,-500.0,0.00025479,2]
[358550566,1745245841656,-500.0,0.00025479,2]
[358550567,1745245841665,-500.0,0.00025479,2]
[358550568,1745245841674,-500.0,0.00025479,2]
[358550569,1745245841683,-3412.16,0.00025479,2]
[358550570,1745245841693,-682.53,0.00025479,2]
[358550571,1745245841704,-500.0,0.00025479,2]
[358550572,1745245841713,-1899.27,0.00025479,2]
[358550573,1745245841723,-500.0,0.00025479,2]
[358550574,1745245841732,-500.0,0.00025479,2]
[358550575,1745245841742,-978.04,0.00025479,2]
[358550576,1745245841752,-1000.0,0.000255,2]
[358550577,1745245841762,-900.0,0.00025692,2]
[358550578,1745245841775,-500.0,0.00025753,2]
[358550579,1745245841786,-500.0,0.00025753,2]
[358550580,1745245841795,-158.96,0.00025753,2]
[358550581,1745245841806,-500.0,0.00025753,2]
[358550582,1745245841815,-3412.16,0.00025753,2]
[358550583,1745245841825,-682.53,0.00025753,2]
[358550584,1745245841835,-500.0,0.00025753,2]
[358550585,1745245841844,-1899.27,0.00025753,2]
[358550586,1745245841854,-500.0,0.00025753,2]
[358550587,1745245841863,-500.0,0.00025753,2]
[358550588,1745245841873,-978.04,0.00025753,2]
[358550589,1745245841883,-587.0,0.00025884,2]
[358550590,1745245841892,-517.41566205,0.00026,2]
[358550591,1745245841903,-19900.0,0.00026,2]
[358550592,1745245841913,-7757.0,0.00026,2]
[358550593,1745245841922,-500.0,0.00026027,2]
[358550594,1745245841932,-500.0,0.00026027,2]
[358550595,1745245841942,-500.0,0.00026027,2]
[358550596,1745245841951,-3412.16,0.00026027,2]
[358550597,1745245841961,-682.53,0.00026027,2]
[358550598,1745245841970,-500.0,0.00026027,2]
[358550599,1745245841979,-1899.27,0.00026027,2]
[358550600,1745245841988,-500.0,0.00026027,2]
[358550601,1745245841998,-500.0,0.00026027,2]
[358550602,1745245842007,-978.04,0.00026027,2]
[358550603,1745245842022,-587.0,0.00026127,2]
[358550604,1745245842031,-324.5,0.00026221,15]
[358550605,1745245842041,-6139.22602847,0.00026291,2]
[358550606,1745245842050,-500.0,0.00026301,2]
[358550607,1745245842060,-500.0,0.00026301,2]
[358550608,1745245842069,-500.0,0.00026301,2]
[358550609,1745245842079,-3412.16,0.00026301,2]
[358550610,1745245842089,-682.53,0.00026301,2]
[358550611,1745245842098,-500.0,0.00026301,2]
[358550612,1745245842107,-1899.27,0.00026301,2]
[358550613,1745245842117,-500.0,0.00026301,2]
[358550614,1745245842126,-500.0,0.00026301,2]
[358550615,1745245842136,-978.04,0.00026301,2]
[358550616,1745245842147,-500.0,0.00026575,2]
[358550617,1745245842156,-500.0,0.00026575,2]
[358550618,1745245842167,-500.0,0.00026575,2]
[358550619,1745245842177,-3412.16,0.00026575,2]
[358550620,1745245842188,-682.53,0.00026575,2]
[358550621,1745245842201,-500.0,0.00026575,2]
[358550622,1745245842210,-1899.27,0.00026575,2]
[358550623,1745245842220,-500.0,0.00026575,2]
[358550624,1745245842230,-500.0,0.00026575,2]
[358550625,1745245842240,-978.04,0.00026575,2]
[358550626,1745245842249,-102632.22736617,0.000268,4]
[358550627,1745245842258,-500.0,0.00026849,2]
[358550628,1745245842269,-500.0,0.00026849,2]
[358550629,1745245842278,-500.0,0.00026849,2]
[358550630,1745245842288,-3412.16,0.00026849,2]
[358550631,1745245842297,-682.53,0.00026849,2]
[358550632,1745245842306,-500.0,0.00026849,2]
[358550633,1745245842316,-1899.27,0.00026849,2]
[358550634,1745245842326,-500.0,0.00026849,2]
[358550635,1745245842335,-500.0,0.00026849,2]
[358550636,1745245842345,-978.04,0.00026849,2]
[358550637,1745245842354,-3657.21139561,0.00027,2]
[358550638,1745245842367,-339.40491329,0.00027,2]
[358550639,1745245842376,-312.84021666,0.00027,3]
[358550640,1745245842387,-312.84021666,0.00027,3]
[358550641,1745245842396,-186.87,0.00027123,2]
[358550642,1745245842406,-500.0,0.00027123,2]
[358550643,1745245842416,-468.39836523,0.00027123,2]
[358550644,1745245842425,-3412.16,0.00027123,2]
[358550646,1745245842435,-682.53,0.00027123,2]
[358550648,1745245842445,-500.0,0.00027123,2]
[358550650,1745245842454,-1899.27,0.00027123,2]
[358550652,1745245842463,-576.97146246,0.00027123,2]
[358550654,1745245842473,-500.0,0.00027123,2]
[358550655,1745245842483,-978.04,0.00027123,2]
[358550658,1745245842493,-1200.0,0.00027336,2]
[358550660,1745245842502,-12278.4520569,0.00027387,2]
[358550662,1745245842512,-10000.0,0.00027397,2]
[358550665,1745245842521,-10000.0,0.00027397,3]
[358550666,1745245842531,-10000.0,0.00027397,4]
[358550667,1745245842541,-10000.0,0.00027397,5]
[358550669,1745245842551,-10000.0,0.00027397,6]
[358550671,1745245842560,-3583.25230198,0.00027397,7]
[358550673,1745245842570,-1000.0,0.00027397,5]
[358550675,1745245842579,-1000.0,0.00027397,5]
[358550677,1745245842589,-1000.0,0.00027397,5]
[358550679,1745245842599,-1000.0,0.00027397,5]
[358550681,1745245842608,-1000.0,0.00027397,5]
[358550684,1745245842618,-359.91214918,0.00027397,5]
[358550686,1745245842628,-500.0,0.00027397,2]
[358550687,1745245842638,-420.65680271,0.00027397,3]
[358550688,1745245842648,-160.0,0.00027397,3]
[358550690,1745245842657,-160.0,0.00027397,3]
[358550692,1745245842667,-3412.16,0.00027397,2]
[358550693,1745245842677,-682.53,0.00027397,2]
[358550696,1745245842688,-500.0,0.00027397,2]
[358550698,1745245842700,-1899.27,0.00027397,2]
[358550699,1745245842709,-160.0,0.00027397,3]
[358550700,1745245842719,-500.0,0.00027397,2]
[358550701,1745245842731,-500.0,0.00027397,2]
[358550702,1745245842741,-978.04,0.00027397,2]
[358550703,1745245842751,-630.765588,0.00027397,2]
[358550704,1745245842762,-294.511635,0.00027397,120]
[358550705,1745245842773,-500.0,0.00027397,4]
[358550706,1745245842782,-610.83560204,0.00027452,5]
[358550707,1745245842792,-1000.0,0.00027452,5]
[358550708,1745245842802,-1000.0,0.00027452,5]
[358550709,1745245842812,-44980.47359172,0.000275,2]
[358550710,1745245842822,-500.0,0.00027534,2]
[358550711,1745245842831,-500.0,0.00027671,2]
[358550712,1745245842841,-641.03,0.00027671,2]
[358550713,1745245842852,-3412.16,0.00027671,2]
[358550714,1745245842861,-682.53,0.00027671,2]
[358550715,1745245842871,-500.0,0.00027671,2]
[358550716,1745245842881,-1899.27,0.00027671,2]
[358550717,1745245842890,-500.0,0.00027671,2]
[358550718,1745245842901,-978.04,0.00027671,2]
[358550719,1745245842911,-500.0,0.00027808,2]
[358550720,1745245842921,-724.03593764,0.00027884,5]
[358550721,1745245842932,-1000.0,0.00027884,5]
[358550722,1745245842942,-500.0,0.00027945,2]
[358550723,1745245842952,-3412.16,0.00027945,2]
[358550724,1745245842962,-682.53,0.00027945,2]
[358550725,1745245842972,-500.0,0.00027945,2]
[358550726,1745245842983,-1899.27,0.00027945,2]
[358550727,1745245842993,-244.98158068,0.00027945,2]
[358550728,1745245843002,-978.04,0.00027945,2]
[358550729,1745245843013,-250.0,0.00027945,5]
[358550730,1745245843023,-32421.38034658,0.0002799,2]
[358550731,1745245843033,-500.0,0.00028082,2]
[358550732,1745245843043,-823.0,0.00028129,2]
[358550733,1745245843052,-500.0,0.00028219,2]
[358550734,1745245843062,-3412.28935752,0.00028219,2]
[358550735,1745245843072,-682.65,0.00028219,2]
[358550736,1745245843082,-457.13509067,0.00028219,2]
[358550737,1745245843091,-1899.2836,0.00028219,2]
[358550738,1745245843101,-978.26,0.00028219,2]
[358550739,1745245843111,-500.0,0.00028356,2]
[358550740,1745245843120,-500.0,0.00028493,2]
[358550741,1745245843130,-350.0,0.00028493,5]
[358550742,1745245843140,-823.0,0.00028528,2]
[358550743,1745245843149,-500.0,0.0002863,2]
[358550744,1745245843159,-500.0,0.00028767,2]
[358550745,1745245843168,-1000.0,0.00028767,4]
[358550748,1745245843178,-167.00711413,0.000288,7]
[358550751,1745245843188,-592.435436,0.00028904,2]
[358550753,1745245843197,-1500.0,0.0002898,5]
[358550756,1745245843207,-6139.22602847,0.0002899,2]
[358550758,1745245843217,-3279.26995883,0.00029,7]
[358550760,1745245843227,-3279.26995883,0.00029,7]
[358550762,1745245843236,-542.74053795,0.00029,7]
[358550764,1745245843246,-542.74053795,0.00029,7]
[358550766,1745245843256,-1056.24627176,0.00029,7]
[358550768,1745245843267,-1056.24627176,0.00029,7]
[358550770,1745245843277,-420.65680271,0.00029,7]
[358550771,1745245843286,-160.0,0.00029,7]
[358550772,1745245843295,-872.06200421,0.00029,2]
[358550773,1745245843305,-160.0,0.00029,7]
[358550774,1745245843315,-463.40445878,0.00029041,5]
[358550775,1745245843324,-250.0,0.00029512,5]
[358550776,1745245843334,-571.44847906,0.00029604,2]
[358550777,1745245843344,-200.0,0.000299,120]
[358550778,1745245843354,-200.0,0.000299,120]
[358550779,1745245843363,-183.54667076,0.0002992,4]
[358550780,1745245843374,-2000.0,0.00029987,4]
[358550781,1745245843383,-30696.1301423,0.0002999,2]
[358550782,1745245843393,-500.0,0.00029999,2]
[358550783,1745245843403,-183.2715,0.0003,2]
[358550784,1745245843413,-200.0,0.0003,2]
[358550785,1745245843423,-245983.22644408,0.0003,7]
[358550786,1745245843433,-277.0,0.0003,2]
[358550787,1745245843443,-309.18937058,0.0003,15]
[358550788,1745245843453,-100897.72388452,0.0003,10]
[358550789,1745245843463,-312.84021666,0.0003,10]
[358550790,1745245843472,-1500.0,0.00030137,4]
[358550791,1745245843483,-730.05671297,0.00030352,5]
[358550792,1745245843492,-1000.0,0.00030352,5]
[358550793,1745245843502,-1000.0,0.00030352,5]
[358550794,1745245843513,-1000.0,0.00030352,5]
[358550795,1745245843524,-1000.0,0.00030352,5]
[358550796,1745245843533,-1000.0,0.00030352,5]
[358550797,1745245843543,-1000.0,0.00030452,5]
[358550798,1745245843553,-1000.0,0.00030452,5]
[358550799,1745245843563,-1017.14731367,0.00030452,5]
[358550800,1745245843573,-298.16591741,0.00030452,5]
[358550801,1745245843582,-1000.0,0.00030452,5]
[358550802,1745245843592,-1000.0,0.00030452,5]
[358550803,1745245843601,-1000.0,0.00030452,5]
[358550804,1745245843611,-1152.0,0.0003057,2]
[358550805,1745245843620,-200.0,0.00030571,14]
[358550806,1745245843630,-259.25203759,0.00030571,14]
[358550807,1745245843640,-1800.0,0.00030624,5]
[358550808,1745245843650,-301.30817792,0.0003099,2]
[358550809,1745245843661,-200.0,0.00031,6]
[358550810,1745245843670,-630.765588,0.0003105,2]
[358550811,1745245843681,-1152.0,0.00031148,3]
[358550812,1745245843695,-2000.0,0.00031507,4]
[358550813,1745245843706,-200.0,0.000316,120]
[358550814,1745245843715,-200.0,0.000316,120]
[358550815,1745245843726,-1013.72587724,0.00031781,2]
[358550816,1745245843736,-1502.51482479,0.000318,7]
[358550817,1745245843745,-294.511635,0.00031963,120]
[358550818,1745245843757,-275.95,0.00032,10]
[358550819,1745245843768,-350.0,0.00032252,5]
[358550820,1745245843778,-250.0,0.00032252,5]
[358550821,1745245843893,-2100.0,0.00032268,5]
[358550822,1745245843904,-6139.22602847,0.00032866,2]
[358550823,1745245843914,-300.0,0.00032876,30]
[358550824,1745245843923,-300.0,0.00032876,30]
[358550825,1745245843934,-300.0,0.00032876,30]
[358550826,1745245843944,-300.0,0.00032876,30]
[358550827,1745245843953,-300.0,0.00032876,30]
[358550828,1745245843963,-300.0,0.00032876,30]
[358550829,1745245843972,-300.0,0.00032876,30]
[358550830,1745245843981,-300.0,0.00032876,30]
[358550831,1745245843991,-300.0,0.00032876,30]
[358550832,1745245844000,-300.0,0.00032876,30]
[358550833,1745245844011,-300.0,0.00032876,30]
[358550834,1745245844023,-300.0,0.00032876,30]
[358550835,1745245844032,-300.0,0.00032876,30]
[358550836,1745245844042,-300.0,0.00032876,30]
[358550837,1745245844052,-300.0,0.00032876,30]
[358550838,1745245844061,-300.0,0.00032876,30]
[358550839,1745245844071,-300.0,0.00032876,30]
[358550840,1745245844081,-300.0,0.00032876,30]
[358550841,1745245844091,-300.0,0.00032876,30]
[358550842,1745245844100,-340.57059734,0.00032876,30]
[358550843,1745245844110,-188.88512555,0.00032877,2]
[358550844,1745245844120,-2500.0,0.00032877,4]
[358550845,1745245844129,-2317.58,0.00033,30]
[358550846,1745245844138,-277.0,0.00033,2]
[358550847,1745245844148,-277.0,0.00033,2]
[358550848,1745245844158,-166.78835393,0.00033,120]
[358550849,1745245844167,-209.82912428,0.00033,30]
[358550850,1745245844177,-653.91408926,0.00033,120]
[358550851,1745245844186,-200.0,0.000333,120]
[358550852,1745245844196,-200.0,0.000333,120]
[358550853,1745245844205,-283.629,0.00033302,7]
[358550854,1745245844214,-2400.0,0.00033912,5]
[358550855,1745245844224,-199.57,0.00034,7]
[358550856,1745245844234,-1613.0,0.0003401,3]
[358550857,1745245844244,-500.0,0.00034107,5]
[358550858,1745245844255,-500.0,0.00034107,5]
[358550859,1745245844266,-708.0,0.00034578,2]
[358550860,1745245844276,-547.498,0.00034578,2]
[358550861,1745245844287,-2246.0,0.00034578,2]
[358550862,1745245844296,-403.0,0.00034578,2]
[358550863,1745245844306,-270.262,0.00034578,2]
[358550864,1745245844316,-153.0,0.00034641,2]
[358550865,1745245844326,-153.0,0.00034641,2]
[358550866,1745245844336,-153.0,0.00034641,2]
[358550867,1745245844346,-153.0,0.00034641,2]
[358550868,1745245844355,-153.0,0.00034641,2]
[358550869,1745245844365,-153.0,0.00034641,2]
[358550870,1745245844375,-153.0,0.00034641,2]
[358550871,1745245844385,-153.0,0.00034641,2]
[358550872,1745245844394,-170.0,0.00034644,2]
[358550873,1745245844404,-170.0,0.00034644,2]
[358550874,1745245844413,-170.0,0.00034644,2]
[358550875,1745245844423,-170.0,0.00034644,2]
[358550876,1745245844432,-170.0,0.00034644,2]
[358550877,1745245844442,-170.0,0.00034644,2]
[358550878,1745245844452,-170.0,0.00034644,2]
[358550879,1745245844462,-170.0,0.00034644,2]
[358550880,1745245844471,-170.0,0.00034644,2]
[358550881,1745245844480,-170.0,0.00034644,2]
[358550882,1745245844490,-170.0,0.00034644,2]
[358550883,1745245844499,-170.0,0.00034644,2]
[358550884,1745245844508,-170.0,0.00034644,2]
[358550885,1745245844520,-170.0,0.00034644,2]
[358550886,1745245844530,-153.0,0.00034651,2]
[358550887,1745245844539,-153.0,0.00034651,2]
[358550888,1745245844548,-153.0,0.00034651,2]
[358550889,1745245844558,-153.0,0.00034651,2]
[358550890,1745245844568,-153.0,0.00034651,2]
[358550891,1745245844578,-153.0,0.00034651,2]
[358550892,1745245844587,-170.0,0.00034654,2]
[358550893,1745245844596,-170.0,0.00034654,2]
[358550894,1745245844606,-170.0,0.00034654,2]
[358550895,1745245844615,-170.0,0.00034654,2]
[358550896,1745245844625,-170.0,0.00034654,2]
[358550897,1745245844634,-170.0,0.00034654,2]
[358550898,1745245844644,-170.0,0.00034654,2]
[358550899,1745245844653,-170.0,0.00034654,2]
[358550900,1745245844663,-170.0,0.00034654,2]
[358550901,1745245844672,-170.0,0.00034654,2]
[358550902,1745245844682,-170.0,0.00034654,2]
[358550903,1745245844692,-170.0,0.00034654,2]
[358550904,1745245844705,-170.0,0.00034654,2]
[358550905,1745245844715,-630.765588,0.00034703,2]
[358550906,1745245844725,-6139.22602847,0.0003479,2]
[358550907,1745245844736,-8050.79,0.000348,30]
[358550908,1745245844746,-420.65680271,0.000348,30]
[358550909,1745245844755,-842.61541962,0.00034849,120]
[358550910,1745245844766,-3140.88712962,0.0003487,4]
[358550911,1745245844778,-7152.69924332,0.0003499,30]
[358550912,1745245844788,-450.0,0.00034992,5]
[358550913,1745245844798,-200.0,0.00035,120]
[358550914,1745245844808,-200.0,0.00035,120]
[358550915,1745245844817,-202.99175,0.00035,5]
[358550916,1745245844827,-10584.31835036,0.00035,2]
[358550917,1745245844837,-160.0,0.00035,30]
[358550918,1745245844847,-184.23850872,0.00035,10]
[358550919,1745245844856,-173.34457611,0.00035,10]
[358550920,1745245844866,-312.84021666,0.00035,30]
[358550921,1745245844876,-1013.72587724,0.00035102,2]
[358550922,1745245844889,-250.0,0.00035248,5]
[358550923,1745245844899,-2186.26552735,0.00035555,5]
[358550924,1745245844909,-203.85422798,0.00035616,7]
[358550925,1745245844918,-350.0,0.00035796,5]
[358550926,1745245844928,-183.2715,0.00035891,5]
[358550927,1745245844937,-202.99175,0.00035891,5]
[358550928,1745245844947,-277.0,0.00036,2]
[358550929,1745245844956,-277.0,0.00036,2]
[358550930,1745245844966,-277.0,0.00036,2]
[358550931,1745245844975,-201.95835085,0.0003621,2]
[358550932,1745245844985,-262.68985209,0.0003624,2]
[358550933,1745245844994,-450.0,0.00036344,5]
[358550934,1745245845003,-294.511635,0.0003653,120]
[358550935,1745245845015,-172.85226834,0.00036538,10]
[358550936,1745245845025,-15019.0,0.000366,20]
[358550937,1745245845036,-200.0,0.000367,120]
[358550938,1745245845045,-200.0,0.000367,120]
[358550939,1745245845055,-157.08990772,0.00036822,2]
[358550940,1745245845064,-550.0,0.00036892,5]
[358550941,1745245845074,-5782.81952145,0.00036898,120]
[358550942,1745245845084,-500.0,0.00036999,2]
[358550943,1745245845093,-98659.54830675,0.00037,6]
[358550944,1745245845102,-312.84021666,0.00037,120]
[358550945,1745245845112,-161.815,0.00037026,47]
[358550946,1745245845121,-2258.0,0.00037134,3]
[358550947,1745245845131,-2317.58,0.000374,30]
[358550948,1745245845141,-258.53873109,0.0003744,5]
[358550949,1745245845150,-6139.22602847,0.00037461,3]
[358550950,1745245845160,-1500.0,0.00037471,5]
[358550951,1745245845169,-1500.0,0.00037471,5]
[358550952,1745245845179,-347.28,0.00037578,2]
[358550953,1745245845188,-2195.049,0.00037578,2]
[358550954,1745245845198,-550.0,0.00037732,5]
[358550955,1745245845208,-189.82551889,0.00037732,5]
[358550956,1745245845219,-1007.06579768,0.000378,2]
[358550957,1745245845228,-1500.0,0.00037903,5]
[358550958,1745245845238,-1800.81,0.00038245,2]
[358550959,1745245845247,-1800.81,0.00038245,2]
[358550960,1745245845257,-1800.81,0.00038245,2]